Cogmind - Beta 13 @@@ ROGUE MODE // 2024.04.08 @ 02:13:37 Player: tjylse Result: Destroyed by Y-54 Guardian with Flak Gun Performance ------------- Evolutions (3) 1500 Regions Visited (5) 1000 Robots Destroyed (59) 295 Value Destroyed (1962) 1962 Prototype IDs (2) 40 Alien Tech Used (0) 0 Bonus (0) 0 TOTAL SCORE: 4797 Bonus ------- None Cogmind --------- Core Integrity 0/700 Matter 292/300 Energy 100/100 System Corruption 8% Temperature Cool (24) Movement Core (50) Location -7/Storage Parts ------- > --- POWER (1) -------- (None) > --- PROPULSION (4) --- (None) > --- UTILITY (4) ------ Improved Targeting Computer > --- WEAPON (4) ------- (None) > --- INVENTORY (5) ---- Thermal Generator Improved Cooling System Compact Matter Pod (150) Improved Signal Interpreter Peak State ------------ > --- POWER ------------ Nuclear Core > --- PROPULSION ------- Carbon-fiber Leg Carbon-fiber Leg Titanium Leg Titanium Leg > --- UTILITY ---------- Improved Cooling System Medium Storage Unit Improved Targeting Computer Transmission Jammer > --- WEAPON ----------- Advanced Beam Rifle Heavy Ion Cannon Gauss Rifle Advanced Assault Cannon > --- INVENTORY -------- Aluminum Leg Gravmag System Gravmag System Gravmag System Compact Matter Pod Improved Signal Interpreter Heavy Ion Cannon Grenade Launcher Grenade Launcher Grenade Launcher [Rating: 44] Favorites ----------- Power Light Nuclear Core Engine Light Ion Engine Power Core Light Nuclear Core Propulsion Carbon-fiber Leg Leg Carbon-fiber Leg Wheel Armored Huge Wheel Hover Unit Gravmag System Utility Medium Storage Unit Device Improved Cooling System Storage Medium Storage Unit Processor Improved Targeting Computer Hackware System Shield Protection Improved Light Armor Plating Weapon Heavy Ion Cannon Energy Gun Gatling Laser Energy Cannon Heavy Ion Cannon Ballistic Gun Assault Rifle Ballistic Cannon Advanced Assault Cannon Launcher Grenade Launcher Build | -11 -10 -9 -8 -7 -7 ------- Run | Yrd Mat Mat Mat Fac Sto Slots Evolved 6 | . . 2 2 2 . Power . | . . . . . . Propulsion 2 | . . 1 . 1 . Utility 2 | . . . 1 1 . Weapon 2 | . . 1 1 . . Parts Attached 79 | 7 6 14 10 31 11 Power 9 | 1 . 1 1 3 3 Engine 2 | 1 . . . . 1 Core 7 | . . 1 1 3 2 Reactor . | . . . . . . Propulsion 21 | 2 . 3 3 10 3 Treads . | . . . . . . Leg 13 | 2 . 3 3 5 . Wheel 3 | . . . . . 3 Hover 5 | . . . . 5 . Flight . | . . . . . . Utility 17 | 2 . 5 1 5 4 Device 7 | 1 . 1 1 3 1 Storage 5 | 1 . 3 . 1 . Processor 1 | . . 1 . . . Hackware 1 | . . . . 1 . Protection 3 | . . . . . 3 Artifact . | . . . . . . Weapon 32 | 2 6 5 5 13 1 Energy Gun 7 | . . 1 2 4 . Energy Cannon 4 | . . . . 4 . Ballistic Gun 13 | 2 2 4 3 1 1 Ballistic Cannon 1 | . . . . 1 . Launcher 7 | . 4 . . 3 . Special Weapon . | . . . . . . Impact Weapon . | . . . . . . Slashing Weapon . | . . . . . . Piercing Weapon . | . . . . . . Special Melee Weapon . | . . . . . . Unidentified Prototypes 2 | . . 1 1 . . Parts Lost 41 | . 1 1 2 16 21 Power 8 | . . . 1 3 4 Propulsion 13 | . . . . 6 7 Utility 7 | . . 1 . 1 5 Weapon 13 | . 1 . 1 6 5 Highest Loss Streak 21 | . 1 1 1 9 21 To Critical Strikes 1 | . . . . 1 . Average Slot Usage (%) 93 | . 99 97 95 94 71 Engine 1 | . 14 5 . . 2 Core 6 | . . 5 9 6 3 Leg 24 | . 28 33 25 24 . Hover 3 | . . . . 4 13 Device 9 | . 14 7 6 10 7 Storage 9 | . 14 11 9 7 10 Processor 5 | . . . 9 7 7 Hackware 1 | . . . . 1 . Energy Gun 3 | . . . . 4 12 Energy Cannon 5 | . . . . 9 . Ballistic Gun 12 | . 15 26 34 5 . Ballistic Cannon 3 | . . . . 5 . Launcher 2 | . 11 6 . 1 2 Naked Turns . | . . . . . . Heaviest Build 45 | 12 15 24 25 45 40 Greatest Support 64 | 20 20 36 43 64 56 Greatest Overweight (x) 3 | 1 . . . 3 1 Average Overweight (x) . | . . . . . . Largest Inventory Capacity 10 | 8 8 10 10 10 10 Average Capacity 9 | 7 8 9 10 10 7 Most Carried 10 | 6 8 10 10 10 9 Average Carried 8 | 3 7 8 9 9 6 Final Capacity 10 | 8 8 10 10 10 5 Final Carried 10 | 6 7 10 10 8 4 Class Distribution -------------------- 39% | Scavenger-Gunner 34% | Gunner 15% | Mutant 7% | Skirmisher 3% | Tank Dominant Class ---------------- Mutant | -10/Materials Skirmisher | -9/Materials Gunner | -8/Materials Scavenger-Gunner | -7/Factory Mutant | -7/Storage Resources | -11 -10 -9 -8 -7 -7 ----------- Run | Yrd Mat Mat Mat Fac Sto Matter Collected 1725 | 277 102 343 328 506 169 Remotely . | . . . . . . Salvage Created 2095 | 10 125 215 448 809 488 Parts 119 | 4 6 14 38 44 13 Haulers Intercepted 1 | . . . 1 . . Recyclers Shooed 2 | . . 2 . . . Parts Field Recycled . | . . . . . . Retrieved Matter . | . . . . . . Parts Self-Destructed . | . . . . . . Prevented . | . . . . . . Kills | -11 -10 -9 -8 -7 -7 ------- Run | Yrd Mat Mat Mat Fac Sto Combat Hostiles Destroyed 47 | . 4 9 11 17 6 Guns 28 | . 1 9 11 2 5 Cannons 11 | . . . . 11 . AOE 8 | . 3 . . 4 1 Classes Destroyed 15 | 1 1 2 5 4 2 Worker 3 | . . . 1 1 1 Builder 1 | . . . . 1 . Tunneler 1 | 1 . . . . . Hauler 1 | . . . 1 . . Recycler 3 | . . . . . 3 Operator 1 | . . . . . 1 Watcher 2 | . . . 1 1 . Swarmer 15 | . . 6 6 1 2 Grunt 10 | . 4 2 2 2 . Brawler 1 | . . 1 . . . Duelist 2 | . . . . 2 . Sentry 10 | . . . 2 4 4 Specialist 2 | . . . . 2 . Hunter 3 | . . . 1 2 . Programmer 4 | . . . . 4 . Best Kill Streak 10 | 1 2 6 7 5 10 Combat Bots Only 6 | . 2 6 6 5 5 Max Kills in Single Turn 3 | 1 1 1 2 3 2 Gunslinging . | . . . . . . Exploded 3 | . 1 . . 3 1 Melee . | . . . . . . Uniques/NPCs Destroyed . | . . . . . . Combat | -11 -10 -9 -8 -7 -7 -------- Run | Yrd Mat Mat Mat Fac Sto Hostile Shots Fired 704 | . 9 41 49 205 400 Missed 267 | . 3 11 18 68 167 Damage Taken 5076 | . 162 193 377 2261 2083 Core 774 | . 31 16 25 310 392 Absorbed by Shields 67 | . . 67 . . . Ignored by Resistances 56 | . . . . . 56 Core Remaining (%) 94 | 100 87 96 95 . . Volleys Fired 96 | 3 6 18 23 34 12 Largest 4 | 2 2 3 4 4 4 Hottest 270 | 40 60 60 83 270 270 Shots Fired 322 | 6 12 46 90 131 37 Gun 231 | 6 7 46 90 47 35 Cannon 78 | . . . . 78 . Launcher 13 | . 5 . . 6 2 Special . | . . . . . . Kinetic 206 | 6 7 46 90 56 1 Thermal 103 | . . . . 69 34 Explosive 13 | . 5 . . 6 2 Electromagnetic . | . . . . . . Robot Hit Streak 11 | 1 9 2 11 11 11 Robot Miss Streak 6 | 4 1 6 5 2 4 Penetration Max . | . . . . . . Secondary Targets 11 | . . 3 4 . 4 Max Gunslinging Chain 1 | . . 1 1 . 1 Shots Hit Robots 196 | 1 9 20 55 79 32 Core Hits 127 | 1 10 13 29 41 33 Critical Kills 1 | . . . 1 . . Critical Parts Destroyed 1 | . . . 1 . . Critical Strikes 3 | . . . 2 1 . Burn 1 | . . . . 1 . Destroy 2 | . . . 2 . . Melee Attacks . | . . . . . . Impact . | . . . . . . Slashing . | . . . . . . Piercing . | . . . . . . Sneak Attacks . | . . . . . . Combat Hostiles . | . . . . . . Follow-up Attacks . | . . . . . . Damage Inflicted 4367 | 37 291 298 578 2291 872 Guns 2214 | 37 60 298 578 547 694 Cannons 1387 | . . . . 1387 . Explosions 766 | . 231 . . 357 178 Melee . | . . . . . . Ramming . | . . . . . . Kinetic 1647 | 37 60 298 578 646 28 Thermal 1954 | . . . . 1288 666 Explosive 718 | . 231 . . 309 178 Electromagnetic 48 | . . . . 48 . Impact . | . . . . . . Slashing . | . . . . . . Piercing . | . . . . . . Highest Corruption 8 | . . . . 8 8 Average Corruption 4 | . . . . 3 8 Corruption Purged . | . . . . . . Corruption Blocked . | . . . . . . Effects 18 | . . . . 11 7 Message Errors 4 | . . . . 3 1 Matter Fused 7 | . . . . 5 2 Heat Flow Errors 1 | . . . . 1 . Energy Discharges 3 | . . . . 2 1 Parts Fused 1 | . . . . . 1 Data Loss (minor) 1 | . . . . . 1 Data Loss (major) 1 | . . . . . 1 Overload Shots . | . . . . . . Overflow Damage 67 | . 6 . . 38 23 Projectiles 29 | . . . . 29 . Explosions 38 | . 6 . . 9 23 Melee . | . . . . . . Knockbacks 5 | . . . . 5 . Impact . | . . . . . . Kinetic 5 | . . . . 5 . Secondary . | . . . . . . Self-Inflicted Damage 314 | . 93 . . 126 95 Shots 12 | . 4 . . 5 3 Rammed . | . . . . . . Targets Rammed . | . . . . . . Kicked . | . . . . . . Crushed . | . . . . . . Highest Temperature 369 | . 5 . 114 213 369 Average Temperature 65 | . 2 . 25 57 143 Received Heat Transfer 723 | . 39 36 36 168 444 Effects 2 | . . . . . 2 Energy Bleed 1 | . . . . . 1 Damage (minor) 1 | . . . . . 1 Siege Activations . | . . . . . . Robots Corrupted . | . . . . . . Combat Hostiles . | . . . . . . Parts Fried . | . . . . . . Impact Corruptions . | . . . . . . Robots Melted . | . . . . . . Combat Hostiles . | . . . . . . Parts Melted 12 | . . . . 2 10 Heat Transferred 3401 | . . . . 1901 1500 Parts Sabotaged . | . . . . . . Parts Stolen . | . . . . . . Parts Stripped . | . . . . . . Power Chain Reactions . | . . . . . . Alert | -11 -10 -9 -8 -7 -7 ------- Run | Yrd Mat Mat Mat Fac Sto Peak Influence 322 | 5 181 291 322 235 321 Initial 146 | . 3 76 38 146 64 Average 137 | . 74 126 167 142 191 Maximum Alert Level 1 | . . 1 1 1 1 Low Security (%) 83 | 100 100 76 62 91 41 Level 1 16 | . . 23 37 8 58 Level 2 . | . . . . . . Level 3 . | . . . . . . Level 4 . | . . . . . . Level 5 . | . . . . . . High Security . | . . . . . . Max Security . | . . . . . . Squads Dispatched 9 | . 2 . 1 5 1 Investigation . | . . . . . . Extermination 2 | . . . . 2 . Reinforcement 6 | . 2 . 1 3 . Assault . | . . . . . . Garrison 1 | . . . . . 1 Intercept . | . . . . . . Searches Triggered . | . . . . . . Construction Impeded . | . . . . . . Haulers Reinforced 1 | . . . . 1 . Active Scanning Responses . | . . . . . . Cargo Convoy Interrupts . | . . . . . . Stealth | -11 -10 -9 -8 -7 -7 --------- Run | Yrd Mat Mat Mat Fac Sto Distress Signals 4 | . 1 . 1 1 1 Communications Jammed . | . . . . . . Distress Signals . | . . . . . . Times Spotted 67 | . 7 9 15 24 12 Peak Tracking Total 7 | . 3 3 4 4 7 Tactical Retreats 2 | . . . 1 1 . Traps | -11 -10 -9 -8 -7 -7 ------- Run | Yrd Mat Mat Mat Fac Sto Traps Triggered 3 | . . . . 2 1 Indirectly . | . . . . . . Trap Hack Attempts . | . . . . . . Triggered . | . . . . . . Disarmed . | . . . . . . Reprogrammed . | . . . . . . Reused . | . . . . . . Traps Extracted . | . . . . . . Installed . | . . . . . . Triggered . | . . . . . . Machines | -11 -10 -9 -8 -7 -7 ---------- Run | Yrd Mat Mat Mat Fac Sto Machines Disabled 6 | . . . . 4 2 Max in Single Turn 2 | . . . . 2 2 Machines Repaired . | . . . . . . Machines Dismantled . | . . . . . . Machines Sabotaged . | . . . . . . Overloaded Fab Kills . | . . . . . . Hacking | -11 -10 -9 -8 -7 -7 --------- Run | Yrd Mat Mat Mat Fac Sto Machines Accessed 1 | . . . 1 . . Terminals 1 | . . . 1 . . Fabricators . | . . . . . . Repair Stations . | . . . . . . Recycling Units . | . . . . . . Scanalyzers . | . . . . . . Garrison Access . | . . . . . . Total Hacks 1 | . . . 1 . . Successful 1 | . . . 1 . . Failed . | . . . . . . Catastrophic . | . . . . . . Database Lockouts . | . . . . . . Manual . | . . . . . . Terminals 1 | . . . 1 . . Fabricators . | . . . . . . Repair Stations . | . . . . . . Recycling Units . | . . . . . . Scanalyzers . | . . . . . . Garrison Access . | . . . . . . Terminal Hacks 1 | . . . 1 . . Maintenance Status 1 | . . . 1 . . Fabricator Hacks . | . . . . . . Repair Station Hacks . | . . . . . . Recycling Unit Hacks . | . . . . . . Scanalyzer . | . . . . . . Garrison Access Hacks . | . . . . . . Unauthorized Hacks . | . . . . . . Terminals . | . . . . . . Fabricators . | . . . . . . Repair Stations . | . . . . . . Recycling Units . | . . . . . . Scanalyzers . | . . . . . . Garrison Access . | . . . . . . Data Cores Recovered . | . . . . . . Used . | . . . . . . Hacking Detections 1 | . . . 1 . . Full Trace Events . | . . . . . . Feedback Events . | . . . . . . Feedback Blocked . | . . . . . . Robot Schematics Acquired . | . . . . . . Robots Built . | . . . . . . Authchips . | . . . . . . Time . | . . . . . . Total Robot Build Rating . | . . . . . . Part Schematics Acquired . | . . . . . . Parts Built . | . . . . . . Authchips . | . . . . . . Time . | . . . . . . Total Part Build Rating . | . . . . . . Parts Repaired . | . . . . . . Time . | . . . . . . Parts Recycled . | . . . . . . Recycled Matter . | . . . . . . Retrieved Matter . | . . . . . . Retrieved Components . | . . . . . . Parts Scanalyzed . | . . . . . . Part Schematics Acquired . | . . . . . . Parts Damaged . | . . . . . . Bothacking | -11 -10 -9 -8 -7 -7 ------------ Run | Yrd Mat Mat Mat Fac Sto Used RIF Installer . | . . . . . . Robots Hacked . | . . . . . . Non-combat . | . . . . . . Combat . | . . . . . . Robot Hacks Applied . | . . . . . . Relay Couplers Released 3 | . . . . 3 . Programmers 3 | . . . . 3 . Fabnet Peak Effective % . | . . . . . . Robots Rewired . | . . . . . . Allies Hacked . | . . . . . . Hacks Repelled . | . . . . . . Allies | -11 -10 -9 -8 -7 -7 -------- Run | Yrd Mat Mat Mat Fac Sto Total Allies . | . . . . . . Largest Group . | . . . . . . Highest-Rated Group . | . . . . . . Highest-Rated Ally . | . . . . . . Total Orders . | . . . . . . Ally Attacks . | . . . . . . Total Damage . | . . . . . . Kills . | . . . . . . Allies Corrupted . | . . . . . . Allies Melted . | . . . . . . Intel | -11 -10 -9 -8 -7 -7 ------- Run | Yrd Mat Mat Mat Fac Sto Robot Analysis Total . | . . . . . . Derelict Logs Recovered . | . . . . . . Drone Launches . | . . . . . . Drone Recoveries . | . . . . . . Exploration | -11 -10 -9 -8 -7 -7 ------------- Run | Yrd Mat Mat Mat Fac Sto Turns Passed 2856 | 78 181 442 294 1671 190 Spaces Moved 1812 | 48 120 294 170 1045 135 Core 9 | 7 . . . 2 . Treads . | . . . . . . Legs 1373 | 41 120 294 170 748 . Wheels 72 | . . . . . 72 Hover 358 | . . . . 295 63 Flight . | . . . . . . Fastest Speed 48 | 50 120 120 120 48 48 Average Speed 110 | 112 120 120 120 107 92 Slowest Speed 270 | 120 120 120 120 270 115 Overloaded Moves . | . . . . . . Propulsion Burnouts . | . . . . . . Robots Hopped . | . . . . . . Cave-ins Triggered . | . . . . . . Exploration Rate (%) 23 | 3 30 26 20 26 34 Regions Visited 5 Branch Regions 1 Pre-discovered Areas . | . . . . . . Known Exits Taken . | . . . . . . Unknown Exits Taken 5 | 1 1 1 1 1 . Scrap Searched . | . . . . . . Spaces Dug . | . . . . . . Terrain Destroyed 102 | . 33 . . 44 25 Melee . | . . . . . . Projectile 5 | . . . . 5 . AOE 97 | . 33 . . 39 25 Terrain Rammed . | . . . . . . Walls Destroyed . | . . . . . . Machines Disabled . | . . . . . . Actions | -11 -10 -9 -8 -7 -7 --------- Run | Yrd Mat Mat Mat Fac Sto Total 2438 | 63 145 345 214 1506 165 Wait 372 | . 2 3 . 363 4 Move 1807 | 47 119 293 169 1044 135 Hop . | . . . . . . Pick Up 47 | 6 7 8 4 21 1 Fast Attach 36 | 7 . 6 7 10 6 Attach 28 | . 1 3 2 17 5 Detach 2 | . . 1 . . 1 Swap 15 | . 5 5 1 4 . Drop 35 | . 5 8 8 13 1 Fire 96 | 3 6 18 23 34 12 Melee . | . . . . . . Ram . | . . . . . . Kick . | . . . . . . Crush . | . . . . . . Escape Stasis . | . . . . . . Rewire . | . . . . . . Trap . | . . . . . . Miscellaneous . | . . . . . . Route ------- -11/Scrapyard -10/Materials -9/Materials -8/Materials -7/Factory (discovered 3 exits: [*Fac x2] / [*Sto]) -7/Storage History --------- Turn | Location | Event 5 | -11/Scrapyard | Discovered new exit (range 16) 79 | -11/Scrapyard | Entered Materials 248 | -10/Materials | Discovered new exit (range 10) 260 | -10/Materials | Entered another Materials area 260 | -9/Materials | Evolved 2 slots: Propulsion x1, Weapon x1 645 | -9/Materials | Discovered new exit (range 8) 702 | -9/Materials | Entered another Materials area 702 | -8/Materials | Evolved 2 slots: Utility x1, Weapon x1 891 | -8/Materials | Discovered new exit (range 16) 943 | -8/Materials | Build established: Gunner 996 | -8/Materials | Entered Factory 996 | -7/Factory | Evolved 2 slots: Propulsion x1, Utility x1 1273 | -7/Factory | Build established: Scavenger-Gunner 2368 | -7/Factory | Lost 5 parts (1p1n1u2w) 2383 | -7/Factory | Build established: Gunner 2385 | -7/Factory | Discovered new exit (range 12) 2451 | -7/Factory | Lost 9 parts (1p4n4w) 2603 | -7/Factory | Discovered new exit (range 15) 2605 | -7/Factory | Discovered new exit (range 15) 2667 | -7/Factory | Entered Storage 2721 | -7/Storage | Garrison activated, responded to threat 2728 | -7/Storage | Core integrity fell below 50% 2814 | -7/Storage | Core integrity fell below 20% 2857 | -7/Storage | Destroyed by Y-54 Guardian with Flak Gun Last Messages --------------- 02788_ System corrupted: Energy discharge (-48). 02808_ Imp. Light Armor Plating destroyed. 02811_ System corrupted: Matter fused (-8). 02813_ Mic. Nuclear Core destroyed. 02822_ K-01 Serf collects debris. 02826_ Acquired Reactive Plating. 02829_ K-01 Serf collects debris. 02833_ Dropped Com. Battery. 02833_ Acquired Imp. Medium Armor Plating. 02836_ K-01 Serf collects debris. 02837_ Imp. Medium Armor Plating destroyed. 02839_ K-01 Serf collects debris. 02848_ Arm. Huge Wheel destroyed. 02849_ K-01 Serf collects debris. 02850_ Reactive Plating destroyed. 02851_ K-01 Serf destroyed. 02852_ Imp. Cooling System destroyed. 02853_ Acquired Arm. Huge Wheel. 02857_ Arm. Huge Wheel destroyed. 02857_ Lgt. Nuclear Core destroyed. Map ----- +----------------------------------------------------+ | | | | | | | | | | | | | | | | | ?????????????????????????????????????????? | | ??????????????????????????#####??????????? | | ??????????????????#####??? ?????#?????? | | ??????????????????#"""#??# "???? #?????? | | ??????????????????#"T"#??# "????? #?????? | | ?????????????????##" "#### "????? #?????? | | ??????????????#### + "????" #?????? | | ??????????????# # "???" #?????? | | ????????????###"##+#### / """" #?????? | | ????????????# ## # #?????? | | ????????????# ## #####+#####?????? | | ????????????# % # ???# #?????????? | | ????????????# + #??# #?????????? | | ????????????# # #??# #?????????? | | ????????????# # #??# #?????????? | | ????????????+ ## #####+####??????? | | ????????????# ## # Y #??????? | | ????????????# ## @ ! #??????? | | ??????????#########/### # s #??????? | | ?????# ### #### ### # #??????? | | ?????# # Y #??????? | | ?????# %* # #??????? | | ???????#### ##+######## #??????? | | ??????????## ?#[%= # %! #??????? | | ???????????#??## # != #??????? | | ???????????# ?# ##########??????? | | ???????????# # #???????????????? | | ???????##### #% """ #???????????????? | | ???????+ #! ! " #???????????????? | | ????????#### # |% "" #???????????????? | | ???????????# ##%%! = #???????????????? | | ???????????# # ##+######???????????????? | | ??????????## #####%###??????????????????? | | ??? =% !##????######?????????? | | ??? ##### ##???#"""""#?????????? | | ????? ####/??#### ######""T""###???????? | | ??????????????????# + #???????? | | ??????????????????# #### #???????? | | ??????????????????# #??# """" #???????? | | ??????????????????# #??# """" #???????? | | ??????????????????# #??# """" #???????? | | ??????????????????#%#??# """" #???????? | +----------------------------------------------------+ Best States ------------- Heat Dissipation 61 Energy Generation 15 Energy Capacity 475 Matter Stores 339 Matter Capacity 400 Sight Range 16 Terrain Scan Range 16 Terrain Scan Density 10 ECM Strength 1 Jamming Range 12 Armor Coverage 150 Resistance: KI 20 Evasion (%) 57 Targeting Accuracy 6 Defensive Hacking 10 Item Schematics ----------------- None Robot Schematics ------------------ None Fabricated ------------ Nothing Alien Tech Used ----------------- None Achievements -------------- None Challenges ------------ None Game ------ Seed BladeAdvancedNukerbomber Manual? 0 Play Time 00:38:12 Cumulative 10.2 hours Start 2024.04.08 @ 01:37:46 End 2024.04.08 @ 02:13:37 Sessions 1 Manual Loads 0 Difficulty Rogue Special Mode None Game No. 24 Rogue 19 Adventurer 5 Explorer 0 Win Type - Total 0 Types 0/0/0/0/0/0/0/0/0 Lore% 2 Gallery% 19 Achievement% 14 Wizard Run 0 Options --------- Layout 1 ASCII 0 Keyboard 0 Movement Mouse Keybinds 0 Fullscreen 2 Font 32/Dina Map View 50x35 Zoom Use 2% Tactical HUD 1 Map Filters NONE Filters NONE Steam 1 RUN: 4225310c-24b5-4208-8a44-9609ab266c36